{"text_format":"1","workbook":"xlsx","n_sheets":3,"sheets":["Иванов","Петров","Лист1"],"not_rendered":{"charts":0,"images":0,"macros":1,"external_links":0,"defined_names":0,"comments":3,"pivot_tables":0},"unopened":[],"bounds":{"document_bytes":16777216,"sheet_cells":100000,"rows_first":2000,"rows_last":500,"rows_between":2000,"halvings":0,"cell_chars":16384,"cell_head_chars":4096},"cells_cut":0,"cells_raw":0,"read":"whole","date_system":"1900"}

{"sheet":"Иванов","index":0,"n_rows":25,"n_cols":15,"rows_kept":25,"cut":false,"hidden":false,"merged":[]}
["Алмакаев В.И.","Материал","Дата начала эксплуатации","Дата окончания эксплуатации","Списать/ продлить","Месяцы","Кол-во","Обозначение СИЗ","Количество на год",null,null,"мес","%"]
["Сапоги м.ПВХ Вседорожник 165-03 42",null,"2015-08-15",{"$f":"IFERROR(EDATE(C2,Таблица13[[#This Row],[Количество на год]]),\"-\")","v":"2018-08-15"},"продлить",5,0.5,"Сапоги резиновые",36,null,null,1,0.5,null,"списать"]
["Сапоги кож.СМУ-028К мех.43",null,"2017-10-31",{"$f":"IFERROR(EDATE(C3,Таблица13[[#This Row],[Количество на год]]),\"-\")","v":"2020-10-31"},"списать",null,0.5,"Сапоги кожаные меховые в III, IV и особом поясах",36,null,null,2,0.5,null,"продлить"]
["Рукавицы мехов.муж.с верх.из х/б",null,"2017-12-01",{"$f":"IFERROR(EDATE(C4,Таблица13[[#This Row],[Количество на год]]),\"-\")","v":"-"},null,12,0.5,"Рукавицы меховые в IV и особом поясах","-",null,null,3,0.5,null,"-"]
["Костюм о/гнуса М-216(6) 52-54/2",null,"2018-05-07",{"$f":"IFERROR(EDATE(C5,Таблица13[[#This Row],[Количество на год]]),\"-\")","v":"2019-05-07"},"продлить",12,0.3,null,12,null,null,4,0.5]
["Сапоги м.ПВХ Вседорожник 165-03 42",null,"2018-08-15",{"$f":"IFERROR(EDATE(C6,Таблица13[[#This Row],[Количество на год]]),\"-\")","v":"2020-12-15"},"продлить",6,0.5,"Сапоги резиновые",28,null,null,5,0.5]
["Перчатки Arcticus 4440 нитрил.покр.р.11",null,"2019-03-29",{"$f":"IFERROR(EDATE(C7,Таблица13[[#This Row],[Количество на год]]),\"-\")","v":"-"},null,null,null,"Перчатки с защитным покрытием","дежурные",null,null,6,0.5]
["Костюм о/гнуса М-216(6) 52-54/2",null,"2019-05-07",{"$f":"IFERROR(EDATE(C8,Таблица13[[#This Row],[Количество на год]]),\"-\")","v":"2020-05-07"},"списать",null,0.75,null,12,null,null,7,0.5]
["Бейсболка М-279(2) убор головной",null,"2019-05-15",{"$f":"IFERROR(EDATE(C9,Таблица13[[#This Row],[Количество на год]]),\"-\")","v":"2020-05-15"},"списать",null,0.75,null,12,null,null,8,0.5]
["Белье м.М-272а 52-54/2",null,"2019-05-15",{"$f":"IFERROR(EDATE(C10,Таблица13[[#This Row],[Количество на год]]),\"-\")","v":"2020-05-15"},"списать",null,0.75,null,12,null,null,9,0.5]
["Подшлемник М-271ПШ трикотажный",null,"2019-05-15",{"$f":"IFERROR(EDATE(C11,Таблица13[[#This Row],[Количество на год]]),\"-\")","v":"2020-05-15"},"списать",null,0.75,null,12,null,null,10,0.5]
["Сапоги м.ПВХ Вседорожник 165-03 42",null,"2020-12-15",{"$f":"IFERROR(EDATE(C12,Таблица13[[#This Row],[Количество на год]]),\"-\")","v":"2021-06-15"},"-",null,null,"Сапоги резиновые",6,null,null,11,0.5]
[null,null,null,null,null,null,null,null,null,null,null,12,0.5]
[null,null,null,null,null,null,null,null,null,null,null,13,0.3]
[null,null,null,null,null,null,null,null,null,null,null,14,0.3]
[null,null,null,null,null,null,null,null,null,null,null,15,0.3]
[null,null,null,null,null,null,null,null,null,null,null,16,0.3]
[null,null,null,null,null,null,null,null,null,null,null,17,0.3]
[null,null,null,null,null,null,null,null,null,null,null,18,0.3]
[null,null,null,null,null,null,null,null,null,null,null,19,0.3]
[null,null,null,null,null,null,null,null,null,null,null,20,0.3]
[null,null,null,null,null,null,null,null,null,null,null,21,0.3]
[null,null,null,null,null,null,null,null,null,null,null,22,0.3]
[null,null,null,null,null,null,null,null,null,null,null,23,0.3]
[null,null,null,null,null,null,null,null,null,null,null,24,0.3]

{"sheet":"Петров","index":1,"n_rows":19,"n_cols":15,"rows_kept":19,"cut":false,"hidden":false,"merged":[[18,2,18,5]]}
["Глазовский Д.А.","Материал","Дата начала эксплуатации","Дата окончания эксплуатации","Списать/ продлить","Месяцы","Кол-во","Обозначение СИЗ","Количество на год",null,null,"мес","%"]
["Сапоги м.ПВХ Вседорожник 165-03 42",null,"2015-08-15",{"$f":"IFERROR(EDATE(C2,Таблица133[[#This Row],[Количество на год]]),\"-\")","v":"2018-08-15"},"продлить",6,0.5,"Сапоги резиновые",36,null,null,1,0.5,null,"списать"]
["Сапоги кож.СМУ-028К мех.43",null,"2017-10-31",{"$f":"IFERROR(EDATE(C3,Таблица133[[#This Row],[Количество на год]]),\"-\")","v":"2020-10-31"},"списать",null,0.75,"Сапоги кожаные меховые в III, IV и особом поясах",36,null,null,2,0.5,null,"продлить"]
["Рукавицы мехов.муж.с верх.из х/б",null,"2017-12-01",{"$f":"IFERROR(EDATE(C4,Таблица133[[#This Row],[Количество на год]]),\"-\")","v":"-"},null,null,null,"Рукавицы меховые в IV и особом поясах","-",null,null,3,0.5,null,"-"]
["Костюм о/гнуса М-216(6) 52-54/2",null,"2018-05-07",{"$f":"IFERROR(EDATE(C5,Таблица133[[#This Row],[Количество на год]]),\"-\")","v":"2019-05-07"},"продлить",12,0.3,null,12,null,null,4,0.5]
["Сапоги м.ПВХ Вседорожник 165-03 42",null,"2018-08-15",{"$f":"IFERROR(EDATE(C6,Таблица133[[#This Row],[Количество на год]]),\"-\")","v":"2020-12-15"},"продлить",6,0.5,"Сапоги резиновые",28,null,null,5,0.5]
["Перчатки Arcticus 4440 нитрил.покр.р.11",null,"2019-03-29",{"$f":"IFERROR(EDATE(C7,Таблица133[[#This Row],[Количество на год]]),\"-\")","v":"-"},null,null,null,"Перчатки с защитным покрытием","дежурные",null,null,6,0.5]
["Костюм о/гнуса М-216(6) 52-54/2",null,"2019-05-07",{"$f":"IFERROR(EDATE(C8,Таблица133[[#This Row],[Количество на год]]),\"-\")","v":"2020-05-07"},"списать",null,0.75,null,12,null,null,7,0.5]
["Бейсболка М-279(2) убор головной",null,"2019-05-15",{"$f":"IFERROR(EDATE(C9,Таблица133[[#This Row],[Количество на год]]),\"-\")","v":"2020-05-15"},"списать",null,0.75,null,12,null,null,8,0.5]
["Белье м.М-272а 52-54/2",null,"2019-05-15",{"$f":"IFERROR(EDATE(C10,Таблица133[[#This Row],[Количество на год]]),\"-\")","v":"2020-05-15"},"списать",null,0.75,null,12,null,null,9,0.5]
["Подшлемник М-271ПШ трикотажный",null,"2019-05-15",{"$f":"IFERROR(EDATE(C11,Таблица133[[#This Row],[Количество на год]]),\"-\")","v":"2020-05-15"},"списать",null,0.75,null,12,null,null,10,0.5]
["Сапоги м.ПВХ Вседорожник 165-03 42",null,"2020-12-15",{"$f":"IFERROR(EDATE(C12,Таблица133[[#This Row],[Количество на год]]),\"-\")","v":"2021-06-15"},"-",null,null,"Сапоги резиновые",6,null,null,11,0.5]
[null,null,null,null,null,null,null,null,null,null,null,12,0.5]
[null,null,null,null,null,null,null,null,null,null,null,13,0.3]
[null,null,null,null,null,null,null,null,null,null,null,14,0.3]
[null,null,null,null,null,null,null,null,null,null,null,15,0.3]
[]
[]
[null,null,"Уважаемы программисты!!! Как мне сделать, чтобы при проставлении  слова продлить и числа в столбец F ( данные их столбцов L и M)  в столбце G прописывлся процент! А при слове списать сразу ставил 75%. Списать красным, продлить синим! Сейчас там есть макрос, но немного не то, что мне надо!!!!"]

{"sheet":"Лист1","index":2,"n_rows":254,"n_cols":5,"rows_kept":254,"cut":false,"hidden":false,"merged":[]}
["ФИО","Табельный номер","Наименование СИЗ","Единица измерения","Количество на год"]
["Алмакаев В.И.","1904059","Костюм антистатический с масловодоотталкивающей пропиткой","кмп","1 на 2 года"]
["Алмакаев В.И.","1904059","Белье нательное хлопчатобумажное","кмп",2]
["Алмакаев В.И.","1904059","Головной убор летний","шт",1]
["Алмакаев В.И.","1904059","Ботинки или сапоги кожаные","пар",1]
["Алмакаев В.И.","1904059","Сапоги резиновые","пар",1]
["Алмакаев В.И.","1904059","Перчатки трикотажные хлопчатобумажные","пар",12]
["Алмакаев В.И.","1904059","Вкладыши противошумные","пар","До износа"]
["Алмакаев В.И.","1904059","Костюм для защиты от пониженных температур с\nпристегивающейся утепляющей прокладкой из антистатических тканей с масловодоотталкивающей пропиткой и с утепленным бельем в IV и особом поясах","кмп",1]
["Алмакаев В.И.","1904059","Белье нательное шерстяное в III, IV и особом поясах","кмп",1]
["Алмакаев В.И.","1904059","Шапка-ушанка","шт","1 на 2 года"]
["Алмакаев В.И.","1904059","Подшлемник трикотажный в III, IV и особом поясах","шт",1]
["Алмакаев В.И.","1904059","Подшлемник на меховой подкладке в IV и особом поясах","шт","1 на 2 года"]
["Алмакаев В.И.","1904059","Перчатки из полимерных материалов морозостойкие","пар",2]
["Алмакаев В.И.","1904059","Рукавицы меховые в IV и особом поясах","пар",1]
["Алмакаев В.И.","1904059","Сапоги кожаные меховые в III, IV и особом поясах","пар","1 на 3 года"]
["Алмакаев В.И.","1904059","Костюм для защиты от вредных биологических факторов","кмп","1 на 3 года"]
["Алмакаев В.И.","1904059","Костюм для защиты от гнуса","кмп",1]
["Алмакаев В.И.","1904059","Накомарник","шт",1]
["Алмакаев В.И.","1904059","Плащ непромокаемый","шт","дежурные"]
["Алмакаев В.И.","1904059","Перчатки с защитным покрытием","пар","дежурные"]
["Алмакаев В.И.","1904059","Очки защитные","шт","дежурные"]
["Алмакаев В.И.","1904059","Каска защитная","шт","дежурные"]
["Глазовский Д.А.","1904068","Костюм антистатический с \nмасловодоотталкивающей пропиткой","кмп","1 на 2 года"]
["Глазовский Д.А.","1904068","Белье нательное хлопчатобумажное","кмп",2]
["Глазовский Д.А.","1904068","Головной убор летний","шт",1]
["Глазовский Д.А.","1904068","Ботинки или сапоги кожаные","пар",1]
["Глазовский Д.А.","1904068","Сапоги резиновые","пар",1]
["Глазовский Д.А.","1904068","Перчатки трикотажные хлопчатобумажные","пар",12]
["Глазовский Д.А.","1904068","Вкладыши противошумные","пар","До износа"]
["Глазовский Д.А.","1904068","Костюм для защиты от пониженных температур с\nпристегивающейся утепляющей прокладкой из антистатических тканей с масловодоотталкивающей пропиткой и с утепленным бельем в IV и особом поясах","кмп",1]
["Глазовский Д.А.","1904068","Белье нательное шерстяное в III, IV и особом поясах","кмп",1]
["Глазовский Д.А.","1904068","Шапка-ушанка","шт","1 на 2 года"]
["Глазовский Д.А.","1904068","Подшлемник трикотажный в III, IV и особом поясах","шт",1]
["Глазовский Д.А.","1904068","Подшлемник на меховой подкладке в IV и особом\nпоясах","шт","1 на 2 года"]
["Глазовский Д.А.","1904068","Перчатки из полимерных материалов морозостойкие","пар",2]
["Глазовский Д.А.","1904068","Рукавицы меховые в IV и особом поясах","пар",1]
["Глазовский Д.А.","1904068","Сапоги кожаные меховые в III, IV и особом поясах","пар","1 на 3 года"]
["Глазовский Д.А.","1904068","Страховочная привязь","шт","1 до износа"]
["Глазовский Д.А.","1904068","Строп страховочный","шт","1 до износа"]
["Глазовский Д.А.","1904068","Костюм для защиты от вредных биологических факторов","кмп","1 на 3 года"]
["Глазовский Д.А.","1904068","Костюм для защиты от гнуса","кмп",1]
["Глазовский Д.А.","1904068","Накомарник","шт",1]
["Глазовский Д.А.","1904068","Плащ непромокаемый","шт","дежурные"]
["Глазовский Д.А.","1904068","Перчатки с защитным покрытием","пар","дежурные"]
["Глазовский Д.А.","1904068","Очки защитные","шт","дежурные"]
["Глазовский Д.А.","1904068","Каска защитная","шт","дежурные"]
["Гулеватый С.В.","1915704","Халат хлопчатобумажный","шт",1]
["Гулеватый С.В.","1915704","Костюм для защиты от пониженных температур с пристегивающейся утепляющей прокладкой из антистатических тканей с масловодоотталкивающей пропиткой и с утепленным бельем в IV и особом поясах","кмп","1 на 4 года"]
["Гулеватый С.В.","1915704","Сапоги кожаные меховые в III, IV и особом поясах","пар","1 на 3 года"]
["Гулеватый С.В.","1915704","Костюм антистатический с масловодоотталкивающей пропиткой","кмп","1 на 2 года"]
["Гулеватый С.В.","1915704","Белье нательное хлопчатобумажное","кмп",2]
["Гулеватый С.В.","1915704","Ботинки кожаные","пар",1]
["Гулеватый С.В.","1915704","Сапоги резиновые","пар",1]
["Гулеватый С.В.","1915704","Перчатки трикотажные хлопчатобумажные","пар",12]
["Гулеватый С.В.","1915704","Белье нательное шерстяное в III, IV и особом поясах","кмп",1]
["Гулеватый С.В.","1915704","Шапка-ушанка","шт","1 на 2 года"]
["Гулеватый С.В.","1915704","Подшлемник трикотажный в III, IV и особом поясах","шт",1]
["Гулеватый С.В.","1915704","Подшлемник на меховой подкладке в IV и особом поясах","шт","1 на 2 года"]
["Гулеватый С.В.","1915704","Перчатки из полимерных материалов морозостойкие","пар",2]
["Гулеватый С.В.","1915704","Рукавицы меховые в IV и особом поясах","пар",1]
["Гулеватый С.В.","1915704","Перчатки с защитным покрытием","пар","До износа"]
["Гулеватый С.В.","1915704","Костюм для защиты от вредных биологических факторов","кмп","1 на 3 года"]
["Гулеватый С.В.","1915704","Костюм для защиты от гнуса","кмп",1]
["Гулеватый С.В.","1915704","Боты диэлектрические","пар","дежурные"]
["Гулеватый С.В.","1915704","Перчатки диэлектрические","пар","дежурные"]
["Гулеватый С.В.","1915704","Очки защитные","шт","дежурные"]
["Гулеватый С.В.","1915704","Плащ непромокаемый","шт","дежурные"]
["Гулеватый С.В.","1915704","Каска защитная","шт","дежурные"]
["Кинжибалов Е.Ю.","1915436","Халат хлопчатобумажный","шт",1]
["Кинжибалов Е.Ю.","1915436","Костюм для защиты от пониженных температур с пристегивающейся утепляющей прокладкой из антистатических тканей с масловодоотталкивающей пропиткой и с утепленным бельем в IV и особом поясах","кмп","1 на 4 года"]
["Кинжибалов Е.Ю.","1915436","Сапоги кожаные меховые в III, IV и особом поясах","пар","1 на 3 года"]
["Кинжибалов Е.Ю.","1915436","Боты диэлектрические","пар","дежурные"]
["Кинжибалов Е.Ю.","1915436","Перчатки диэлектрические","пар","дежурные"]
["Кинжибалов Е.Ю.","1915436","Очки защитные","шт","дежурные"]
["Кристовир А.А.","1912622","Костюм антистатический с масловодоотталкивающей пропиткой","кмп",1]
["Кристовир А.А.","1912622","Белье нательное хлопчатобумажное","кмп",1]
["Кристовир А.А.","1912622","Головной убор летний","шт",1]
["Кристовир А.А.","1912622","Сапоги кожаные","пар",1]
["Кристовир А.А.","1912622","Сапоги резиновые","пар",1]
["Кристовир А.А.","1912622","Костюм для защиты от пониженных температур с пристегивающейся утепляющей прокладкой из антистатических тканей с масловодоотталкивающей пропиткой и с утепленным бельем в IV и особом поясах","кмп",1]
["Кристовир А.А.","1912622","Белье нательное шерстяное в III, IV и особом поясах","кмп",1]
["Кристовир А.А.","1912622","Шапка-ушанка","шт","1 на 2 года"]
["Кристовир А.А.","1912622","Подшлемник трикотажный в III, IV и особом поясах","шт",1]
["Кристовир А.А.","1912622","Подшлемник на меховой подкладке в IV и особом поясах","шт","1 на 2 года"]
["Кристовир А.А.","1912622","Перчатки из полимерных материалов морозостойкие","пар",2]
["Кристовир А.А.","1912622","Рукавицы меховые в IV и особом поясах","пар",1]
["Кристовир А.А.","1912622","Сапоги кожаные меховые в III, IV и особом поясах","пар","1 на 3 года"]
["Кристовир А.А.","1912622","Костюм для защиты от вредных биологических факторов","кмп","1 на 3 года"]
["Кристовир А.А.","1912622","Костюм для защиты от гнуса","кмп",1]
["Кристовир А.А.","1912622","Накомарник","шт",1]
["Кристовир А.А.","1912622","Перчатки с защитным покрытием","шт","дежурные"]
["Кристовир А.А.","1912622","Перчатки диэлектрические","пар","дежурные"]
["Кристовир А.А.","1912622","Боты диэлектрические","пар","дежурные"]
["Кристовир А.А.","1912622","Очки защитные","шт","дежурные"]
["Кристовир А.А.","1912622","Каска защитная","шт","дежурные"]
["Кристовир Ал.А.","1913850","Халат хлопчатобумажный","шт",1]
["Кристовир Ал.А.","1913850","Сандали кожаные","пар",1]
["Кристовир А.Б.","1912037","Костюм антистатический с масловодоотталкивающей пропиткой","кмп",1]
["Кристовир А.Б.","1912037","Белье нательное хлопчатобумажное","кмп",1]
["Кристовир А.Б.","1912037","Головной убор летний","шт",1]
["Кристовир А.Б.","1912037","Сапоги кожаные","пар",1]
["Кристовир А.Б.","1912037","Сапоги резиновые","пар",1]
["Кристовир А.Б.","1912037","Костюм для защиты от пониженных температур с пристегивающейся утепляющей прокладкой из антистатических тканей с масловодоотталкивающей пропиткой и с утепленным бельем в IV и особом поясах","кмп",1]
["Кристовир А.Б.","1912037","Белье нательное шерстяное в III, IV и особом поясах","кмп",1]
["Кристовир А.Б.","1912037","Шапка-ушанка","шт","1 на 2 года"]
["Кристовир А.Б.","1912037","Подшлемник трикотажный в III, IV и особом поясах","шт",1]
["Кристовир А.Б.","1912037","Подшлемник на меховой подкладке в IV и особом поясах","шт","1 на 2 года"]
["Кристовир А.Б.","1912037","Перчатки из полимерных материалов морозостойкие","пар",2]
["Кристовир А.Б.","1912037","Рукавицы меховые в IV и особом поясах","пар",1]
["Кристовир А.Б.","1912037","Сапоги кожаные меховые в III, IV и особом поясах","пар","1 на 3 года"]
["Кристовир А.Б.","1912037","Костюм для защиты от вредных биологических факторов","кмп","1 на 3 года"]
["Кристовир А.Б.","1912037","Костюм для защиты от гнуса","кмп",1]
["Кристовир А.Б.","1912037","Накомарник","шт",1]
["Кристовир А.Б.","1912037","Перчатки с защитным покрытием","шт","дежурные"]
["Кристовир А.Б.","1912037","Перчатки диэлектрические","пар","дежурные"]
["Кристовир А.Б.","1912037","Боты диэлектрические","пар","дежурные"]
["Кристовир А.Б.","1912037","Очки защитные","шт","дежурные"]
["Кристовир А.Б.","1912037","Каска защитная","шт","дежурные"]
["Кульчицкая Л.С.","1912044","Костюм антистатический с масловодоотталкивающей пропиткой","кмп",1]
["Кульчицкая Л.С.","1912044","Белье нательное хлопчатобумажное","кмп",1]
["Кульчицкая Л.С.","1912044","Головной убор летний","шт",1]
["Кульчицкая Л.С.","1912044","Сапоги кожаные","пар",1]
["Кульчицкая Л.С.","1912044","Сапоги резиновые","пар",1]
["Кульчицкая Л.С.","1912044","Костюм для защиты от пониженных температур с пристегивающейся утепляющей прокладкой из антистатических тканей с масловодоотталкивающей пропиткой и с утепленным бельем в IV и особом поясах","кмп",1]
["Кульчицкая Л.С.","1912044","Белье нательное шерстяное в III, IV и особом поясах","кмп",1]
["Кульчицкая Л.С.","1912044","Шапка-ушанка","шт","1 на 2 года"]
["Кульчицкая Л.С.","1912044","Подшлемник трикотажный в III, IV и особом поясах","шт",1]
["Кульчицкая Л.С.","1912044","Подшлемник на меховой подкладке в IV и особом поясах","шт","1 на 2 года"]
["Кульчицкая Л.С.","1912044","Перчатки из полимерных материалов морозостойкие","пар",2]
["Кульчицкая Л.С.","1912044","Рукавицы меховые в IV и особом поясах","пар",1]
["Кульчицкая Л.С.","1912044","Сапоги кожаные меховые в III, IV и особом поясах","пар","1 на 3 года"]
["Кульчицкая Л.С.","1912044","Костюм для защиты от вредных биологических факторов","кмп","1 на 3 года"]
["Кульчицкая Л.С.","1912044","Костюм для защиты от гнуса","кмп",1]
["Кульчицкая Л.С.","1912044","Накомарник","шт",1]
["Кульчицкая Л.С.","1912044","Перчатки с защитным покрытием","шт","дежурные"]
["Кульчицкая Л.С.","1912044","Перчатки диэлектрические","пар","дежурные"]
["Кульчицкая Л.С.","1912044","Боты диэлектрические","пар","дежурные"]
["Кульчицкая Л.С.","1912044","Очки защитные","шт","дежурные"]
["Кульчицкая Л.С.","1912044","Каска защитная","шт","дежурные"]
["Курмандаев Э.Р.","1927879","Костюм антистатический с масловодоотталкивающей пропиткой","кмп",1]
["Курмандаев Э.Р.","1927879","Белье нательное хлопчатобумажное","кмп",1]
["Курмандаев Э.Р.","1927879","Головной убор летний","шт",1]
["Курмандаев Э.Р.","1927879","Сапоги кожаные","пар",1]
["Курмандаев Э.Р.","1927879","Сапоги резиновые","пар",1]
["Курмандаев Э.Р.","1927879","Костюм для защиты от пониженных температур с пристегивающейся утепляющей прокладкой из антистатических тканей с масловодоотталкивающей пропиткой и с утепленным бельем в IV и особом поясах","кмп",1]
["Курмандаев Э.Р.","1927879","Белье нательное шерстяное в III, IV и особом поясах","кмп",1]
["Курмандаев Э.Р.","1927879","Шапка-ушанка","шт","1 на 2 года"]
["Курмандаев Э.Р.","1927879","Подшлемник трикотажный в III, IV и особом поясах","шт",1]
["Курмандаев Э.Р.","1927879","Подшлемник на меховой подкладке в IV и особом поясах","шт","1 на 2 года"]
["Курмандаев Э.Р.","1927879","Перчатки из полимерных материалов морозостойкие","пар",2]
["Курмандаев Э.Р.","1927879","Рукавицы меховые в IV и особом поясах","пар",1]
["Курмандаев Э.Р.","1927879","Сапоги кожаные меховые в III, IV и особом поясах","пар","1 на 3 года"]
["Курмандаев Э.Р.","1927879","Костюм для защиты от вредных биологических факторов","кмп","1 на 3 года"]
["Курмандаев Э.Р.","1927879","Костюм для защиты от гнуса","кмп",1]
["Курмандаев Э.Р.","1927879","Накомарник","шт",1]
["Курмандаев Э.Р.","1927879","Перчатки с защитным покрытием","шт","дежурные"]
["Курмандаев Э.Р.","1927879","Перчатки диэлектрические","пар","дежурные"]
["Курмандаев Э.Р.","1927880","Боты диэлектрические","пар","дежурные"]
["Курмандаев Э.Р.","1927879","Очки защитные","шт","дежурные"]
["Курмандаев Э.Р.","1927879","Каска защитная","шт","дежурные"]
["Кутельникова Е.В.","1912510","Халат хлопчатобумажный","шт",1]
["Кутельникова Е.В.","1912510","Костюм для защиты от пониженных температур с пристегивающейся утепляющей прокладкой из антистатических тканей с масловодоотталкивающей пропиткой и с утепленным бельем в IV и особом поясах","кмп","1 на 4 года"]
["Кутельникова Е.В.","1912510","Сапоги кожаные меховые в III, IV и особом поясах","пар","1 на 3 года"]
["Кутельникова Е.В.","1912510","Боты диэлектрические","пар","дежурные"]
["Кутельникова Е.В.","1912510","Перчатки диэлектрические","пар","дежурные"]
["Кутельникова Е.В.","1912510","Очки защитные","шт","дежурные"]
["Меняйлова С.В.","1912045","Халат хлопчатобумажный","шт",1]
["Меняйлова С.В.","1912045","Костюм для защиты от пониженных температур с пристегивающейся утепляющей прокладкой из антистатических тканей с масловодоотталкивающей пропиткой и с утепленным бельем в IV и особом поясах","кмп","1 на 4 года"]
["Меняйлова С.В.","1912045","Сапоги кожаные меховые в III, IV и особом поясах","пар","1 на 3 года"]
["Меняйлова С.В.","1912045","Боты диэлектрические","пар","дежурные"]
["Меняйлова С.В.","1912045","Перчатки диэлектрические","пар","дежурные"]
["Меняйлова С.В.","1912045","Очки защитные","шт","дежурные"]
["Павленко Д.А.","1912130","Халат хлопчатобумажный","шт",1]
["Павленко Д.А.","1912130","Костюм для защиты от пониженных температур с пристегивающейся утепляющей прокладкой из антистатических тканей с масловодоотталкивающей пропиткой и с утепленным бельем в IV и особом поясах","кмп","1 на 4 года"]
["Павленко Д.А.","1912130","Сапоги кожаные меховые в III, IV и особом поясах","пар","1 на 3 года"]
["Павленко Д.А.","1912130","Костюм антистатический с масловодоотталкивающей пропиткой","кмп","1 на 2 года"]
["Павленко Д.А.","1912130","Белье нательное хлопчатобумажное","кмп",2]
["Павленко Д.А.","1912130","Ботинки кожаные","пар",1]
["Павленко Д.А.","1912130","Сапоги резиновые","пар",1]
["Павленко Д.А.","1912130","Перчатки трикотажные хлопчатобумажные","пар",12]
["Павленко Д.А.","1912130","Белье нательное шерстяное в III, IV и особом поясах","кмп",1]
["Павленко Д.А.","1912130","Шапка-ушанка","шт","1 на 2 года"]
["Павленко Д.А.","1912130","Подшлемник трикотажный в III, IV и особом поясах","шт",1]
["Павленко Д.А.","1912130","Подшлемник на меховой подкладке в IV и особом поясах","шт","1 на 2 года"]
["Павленко Д.А.","1912130","Перчатки из полимерных материалов морозостойкие","пар",2]
["Павленко Д.А.","1912130","Рукавицы меховые в IV и особом поясах","пар",1]
["Павленко Д.А.","1912130","Перчатки с защитным покрытием","пар","До износа"]
["Павленко Д.А.","1912130","Костюм для защиты от вредных биологических факторов","кмп","1 на 3 года"]
["Павленко Д.А.","1912130","Костюм для защиты от гнуса","кмп",1]
["Павленко Д.А.","1912130","Накомарник","шт",1]
["Павленко Д.А.","1912130","Боты диэлектрические","пар","дежурные"]
["Павленко Д.А.","1912130","Перчатки диэлектрические","пар","дежурные"]
["Павленко Д.А.","1912130","Очки защитные","шт","дежурные"]
["Павленко Д.А.","1912130","Плащ непромокаемый","шт","дежурные"]
["Павленко Д.А.","1912130","Каска защитная","шт","дежурные"]
["Писковская Д.С.","1925206","Халат хлопчатобумажный","шт",1]
["Писковская Д.С.","1925206","Сандали кожаные","пар",1]
["Туйцин И.В.","1912114","Костюм антистатический с масловодоотталкивающей пропиткой","кмп",1]
["Туйцин И.В.","1912114","Белье нательное хлопчатобумажное","кмп",1]
["Туйцин И.В.","1912114","Головной убор летний","шт",1]
["Туйцин И.В.","1912114","Сапоги кожаные","пар",1]
["Туйцин И.В.","1912114","Сапоги резиновые","пар",1]
["Туйцин И.В.","1912114","Костюм для защиты от пониженных температур с пристегивающейся утепляющей прокладкой из антистатических тканей с масловодоотталкивающей пропиткой и с утепленным бельем в IV и особом поясах","кмп",1]
["Туйцин И.В.","1912114","Белье нательное шерстяное в III, IV и особом поясах","кмп",1]
["Туйцин И.В.","1912114","Шапка-ушанка","шт","1 на 2 года"]
["Туйцин И.В.","1912114","Подшлемник трикотажный в III, IV и особом поясах","шт",1]
["Туйцин И.В.","1912114","Подшлемник на меховой подкладке в IV и особом поясах","шт","1 на 2 года"]
["Туйцин И.В.","1912114","Перчатки из полимерных материалов морозостойкие","пар",2]
["Туйцин И.В.","1912114","Рукавицы меховые в IV и особом поясах","пар",1]
["Туйцин И.В.","1912114","Сапоги кожаные меховые в III, IV и особом поясах","пар","1 на 3 года"]
["Туйцин И.В.","1912114","Костюм для защиты от вредных биологических факторов","кмп","1 на 3 года"]
["Туйцин И.В.","1912114","Костюм для защиты от гнуса","кмп",1]
["Туйцин И.В.","1912114","Накомарник","шт",1]
["Туйцин И.В.","1912114","Перчатки с защитным покрытием","шт","дежурные"]
["Туйцин И.В.","1912114","Перчатки диэлектрические","пар","дежурные"]
["Туйцин И.В.","1912114","Боты диэлектрические","пар","дежурные"]
["Туйцин И.В.","1912114","Очки защитные","шт","дежурные"]
["Туйцин И.В.","1912114","Каска защитная","шт","дежурные"]
["Хмельницкий Б.Н.","1914551"]
["Хмельницкий Б.Н.","1914551"]
["Хмельницкий Б.Н.","1914551"]
["Хмельницкий Б.Н.","1914551"]
["Хмельницкий Б.Н.","1914551"]
["Хмельницкий Б.Н.","1914551"]
["Хмельницкий Б.Н.","1914551"]
["Хмельницкий Б.Н.","1914551"]
["Хмельницкий Б.Н.","1914551"]
["Хмельницкий Б.Н.","1914551"]
["Хмельницкий Б.Н.","1914551"]
["Хмельницкий Б.Н.","1914551"]
["Хмельницкий Б.Н.","1914551"]
["Шаврин А.А.","1902910","Костюм антистатический с\nмасловодоотталкивающей пропиткой","кмп","1 на 2 года"]
["Шаврин А.А.","1902910","Белье нательное хлопчатобумажное","кмп",2]
["Шаврин А.А.","1902910","Головной убор летний","шт",1]
["Шаврин А.А.","1902910","Ботинки или сапоги кожаные","пар",1]
["Шаврин А.А.","1902910","Сапоги резиновые","пар",1]
["Шаврин А.А.","1902910","Перчатки трикотажные хлопчатобумажные","пар",12]
["Шаврин А.А.","1902910","Вкладыши противошумные","пар","До износа"]
["Шаврин А.А.","1902910","Костюм для защиты от пониженных температур с\nпристегивающейся утепляющей прокладкой из антистатических тканей с масловодоотталкивающей пропиткой и с утепленным бельем в IV и особом поясах","кмп",1]
["Шаврин А.А.","1902910","Белье нательное шерстяное в III, IV и особом поясах","кмп",1]
["Шаврин А.А.","1902910","Шапка-ушанка","шт","1 на 2 года"]
["Шаврин А.А.","1902910","Подшлемник трикотажный в III, IV и особом поясах","шт",1]
["Шаврин А.А.","1902910","Подшлемник на меховой подкладке в IV и особом\nпоясах","шт","1 на 2 года"]
["Шаврин А.А.","1902910","Перчатки из полимерных материалов морозостойкие","пар",2]
["Шаврин А.А.","1902910","Рукавицы меховые в IV и особом поясах","пар",1]
["Шаврин А.А.","1902910","Сапоги кожаные меховые в III, IV и особом поясах","пар","1 на 3 года"]
["Шаврин А.А.","1902910","Костюм для защиты от вредных биологических факторов","кмп","1 на 3 года"]
["Шаврин А.А.","1902910","Костюм для защиты от гнуса","кмп",1]
["Шаврин А.А.","1902910","Накомарник","шт",1]
["Шаврин А.А.","1902910","Плащ непромокаемый","шт","дежурные"]
["Шаврин А.А.","1902910","Перчатки с защитным покрытием","пар","дежурные"]
["Шаврин А.А.","1902910","Очки защитные","шт","дежурные"]
["Шаврин А.А.","1902910","Каска защитная","шт","дежурные"]